bitfinex/quotes_ETHUSD_20250808
["timestamp","ask_amount","ask_price","bid_price","bid_amount"]
[1754661005158,0.4445,3992.9,3992.7,2.50451439]
[1754661005481,0.4445,3992.9,3991.6,3.0]
[1754661005482,0.45300842,3992.8,3992.5,4.952]
[1754661005682,0.4445,3993.5,3992.6,3.0]
[1754661005980,0.00850842,3992.7,3992.5,2.50468118]
[1754661006189,0.44450001,3993.1,3992.6,4.957]
[1754661006345,0.4445,3993.0,3992.7,4.958]
[1754661006545,0.45300842,3993.0,3992.7,7.46256462]
[1754661006806,0.15201001,3993.1,3991.8,1.2112]
[1754661007095,0.45300842,3992.9,3991.2,1.2112]
[1754661007381,0.4445,3992.9,3991.4,3.0]
[1754661007550,0.17657026,3992.8,3992.3,2.50482066]
[1754661007750,0.17657026,3992.8,3992.3,4.948]
[1754661007952,0.4445,3992.7,3992.3,4.945]
[1754661008180,0.4445,3992.7,3991.1,2.50556511]
[1754661008181,2.50470968,3992.5,3991.9,4.942]
[1754661008478,0.43692124,3992.4,3991.9,4.942]
[1754661008645,1.5201,3992.3,3992.2,0.1256]
[1754661008841,0.4445,3992.3,3991.2,2.50545152]
[1754661009078,2.94933192,3992.3,3992.1,0.1256]
[1754661009254,0.4445,3992.2,3992.1,0.1256]
[1754661009458,0.59651,3992.2,3992.1,0.1256]
[1754661009689,3.10139452,3992.2,3992.1,0.1256]
[1754661009992,4.18549893,3992.2,3991.7,0.001]
[1754661010146,0.47581184,3992.1,3991.9,0.1256]
[1754661010341,0.47581184,3992.1,3991.7,0.001]
[1754661010342,2.50513552,3991.8,3991.7,0.001]
[1754661010546,3.19223545,3991.8,3991.7,0.001]
[1754661010782,4.67732126,3991.8,3991.7,0.001]
[1754661010955,2.17218574,3991.8,3991.7,0.001]
[1754661011155,4.15563993,3991.8,3991.7,0.001]
[1754661011546,4.17844971,3991.8,3991.7,0.001]
[1754661011746,2.50563768,3991.0,3990.7,0.001]
[1754661011982,2.50555433,3991.2,3990.7,0.001]
[1754661011983,2.50574861,3990.9,3990.7,0.001]
[1754661012191,2.50576325,3990.8,3990.7,0.001]
[1754661012363,4.56860801,3990.8,3990.7,0.001]
[1754661012548,4.59993005,3990.8,3990.7,0.001]
[1754661012750,4.56860801,3990.8,3990.7,0.001]
[1754661013284,0.54644476,3990.8,3990.7,0.001]
[1754661013463,2.95026325,3990.8,3990.7,0.001]
[1754661013647,0.03982566,3990.9,3990.7,0.001]
[1754661013850,0.00850441,3990.9,3990.7,0.001]
[1754661014055,1e-08,3990.9,3990.8,12.08326325]
[1754661014480,1e-08,3990.9,3990.8,11.66496325]
[1754661014791,1e-08,3990.9,3990.8,8.13414654]
[1754661015028,0.4445,3991.6,3990.7,0.001]
[1754661015374,2.50524517,3991.7,3990.7,3.001]
[1754661015575,1.0719,3992.3,3990.8,2.50574179]
[1754661015576,2.50528314,3991.6,3990.8,2.50574179]
[1754661015894,0.4445,3992.1,3991.2,2.50550775]
[1754661016094,4.941,3992.6,3991.4,2.50533031]
[1754661016259,0.60016,3992.5,3990.7,0.001]
[1754661016459,2.50537819,3991.5,3990.7,3.001]
[1754661016654,0.4445,3991.9,3990.7,0.001]
[1754661016859,0.60866863,3992.5,3990.7,0.001]
[1754661016860,0.4445,3992.4,3990.8,2.50576325]
[1754661017060,0.60866863,3992.5,3991.0,3.0]
[1754661017356,2.50495366,3992.1,3991.3,2.50541752]
[1754661017585,2.50482178,3992.3,3991.4,2.50533367]
[1754661017798,2.50486789,3992.3,3991.3,3.0]
[1754661018000,0.4445,3992.4,3991.4,2.50538658]
[1754661018305,0.00850863,3992.2,3991.1,4.2112]
[1754661018610,0.00850863,3992.2,3989.6,2.50746355]
[1754661018611,0.4445,3992.1,3990.7,3.001]
[1754661018913,2.50551659,3991.2,3990.7,0.001]
[1754661019216,2.53690209,3991.1,3990.7,0.001]
[1754661019362,0.4445,3991.2,3990.7,0.001]
[1754661019705,2.50576325,3990.8,3990.7,0.001]
[1754661020069,0.4445,3991.0,3990.7,0.001]
[1754661020070,2.95019813,3991.0,3990.7,0.001]
[1754661020272,2.95026325,3990.8,3990.7,0.001]
[1754661020615,4.24434029,3990.8,3990.7,0.001]
[1754661021107,2.50621604,3990.1,3989.3,0.001]
[1754661021315,2.5066426,3989.4,3989.3,1e-08]
[1754661021517,2.53797563,3989.4,3989.3,1e-08]
[1754661021723,3.26174142,3989.4,3989.3,1e-08]
[1754661021869,0.1256,3990.0,3989.3,0.12560001]
[1754661022075,0.4445,3991.2,3989.4,1.2112]
[1754661022325,2.50601443,3990.4,3990.3,0.1256]
[1754661022476,2.5066426,3989.4,3989.3,1e-08]
[1754661022671,2.50651694,3989.6,3989.3,1e-08]
[1754661022934,5.0516,3989.7,3986.0,8.52774244]
[1754661022935,2.50727108,3988.4,3986.6,2.94869184]
[1754661023079,2.50752256,3988.0,3987.7,0.1256]
[1754661023273,2.50752256,3988.0,3987.5,0.1266]
[1754661023573,4.13822256,3988.0,3987.5,0.001]
[1754661023790,4.16956659,3988.0,3987.5,0.001]
[1754661024238,4.40249112,3988.0,3987.5,0.001]
[1754661024544,4.16956659,3988.0,3987.9,1e-08]
[1754661024723,4.95208243,3988.0,3987.9,1e-08]
[1754661024893,6.19223074,3988.0,3987.9,1e-08]
[1754661025092,6.16088671,3988.0,3987.9,1e-08]
[1754661025328,2.50777409,3987.6,3987.5,1e-08]
[1754661025530,2.50802568,3987.2,3985.5,1.3338]
[1754661025706,2.50865485,3986.2,3985.5,0.001]
[1754661025906,5.17886549,3986.2,3985.5,0.001]
[1754661026106,2.50903251,3985.6,3985.5,0.001]
[1754661026499,0.4442,3986.1,3985.5,0.001]
[1754661026703,0.03135818,3986.2,3985.5,0.001]
[1754661026903,0.23166,3986.6,3985.5,0.001]
[1754661026904,2.53988128,3986.5,3985.5,0.001]
[1754661027205,2.50903251,3985.6,3985.5,0.001]
[1754661027839,0.79050813,3986.4,3985.5,0.001]
[1754661028137,2.50903251,3985.6,3985.5,0.001]
[1754661028539,2.95323251,3985.6,3985.5,0.001]
[1754661028704,0.4442,3986.4,3985.5,0.001]
[1754661028910,2.50903251,3985.6,3985.5,0.001]
[1754661029330,2.50903251,3985.6,3985.0,0.001]
[1754661029331,2.50915842,3985.4,3985.3,1e-08]
[1754661029534,7.42115842,3985.4,3985.3,1e-08]
[1754661029840,0.50179749,3985.5,3985.3,1e-08]
[1754661030014,1.5048,3986.7,3985.3,1.33280001]
[1754661030341,4.94235503,3986.6,3985.3,1.33280001]
[1754661030506,2.50914552,3985.5,3985.3,1e-08]
[1754661030706,2.50915842,3985.4,3985.3,1e-08]
[1754661031129,2.95335842,3985.4,3985.3,1e-08]
[1754661031503,2.50915842,3985.4,3985.3,1e-08]
[1754661032020,2.50897467,3985.7,3985.3,1e-08]
[1754661032215,0.00852133,3985.4,3985.3,1e-08]
[1754661032451,2.51767975,3985.4,3985.3,1e-08]
[1754661032658,0.00852133,3985.4,3985.3,0.46430001]
[1754661032839,0.4442,3987.1,3985.3,2.97346768]
[1754661033009,0.53352,3987.0,3985.4,1.34532873]
[1754661033209,4.893,3987.6,3985.6,3.0]
[1754661033410,0.03134796,3987.5,3985.7,1.7971]
[1754661033655,0.4442,3987.4,3985.7,1.7971]
[1754661033943,0.4442,3987.4,3985.3,1e-08]
[1754661033944,2.50915842,3985.4,3985.3,1e-08]
[1754661035352,2.95335842,3985.4,3985.3,1e-08]
[1754661035529,3.54399936,3985.4,3985.3,1e-08]
[1754661036152,2.50915842,3985.4,3985.3,1e-08]
[1754661036834,2.51328883,3985.4,3985.3,1e-08]
[1754661037350,2.51328883,3985.4,3985.3,1.33280001]
[1754661037660,2.50915842,3985.4,3985.3,1e-08]
[1754661037861,2.51768067,3985.4,3985.3,1e-08]
[1754661038029,7.87483159,3985.4,3985.3,1e-08]
[1754661038435,7.88335376,3985.4,3985.3,1e-08]
[1754661038738,7.38068059,3985.4,3985.3,1e-08]
[1754661039629,2.51768059,3985.4,3985.3,1e-08]
[1754661039831,2.50915842,3985.4,3985.3,0.12560001]
[1754661040039,2.50915842,3985.4,3985.3,1e-08]
[1754661040238,2.51768059,3985.4,3985.3,1e-08]
[1754661040465,3.50505375,3985.4,3985.3,1e-08]
[1754661040834,2.51768059,3985.4,3985.3,1.45840001]
[1754661041166,2.50838463,3986.7,3985.3,1.79710001]
[1754661041367,4.839,3987.3,3985.4,1.7971]
[1754661041675,5.07140776,3987.2,3985.5,1.7971]
[1754661041835,0.23040776,3987.1,3985.7,2.50894772]
[1754661042169,0.002,3986.2,3985.8,1.3328]
[1754661042465,0.002,3986.2,3985.9,1.7971]
[1754661042694,0.002,3986.2,3985.0,2.51040004]
[1754661042695,0.4442,3986.1,3985.0,0.001]
[1754661042894,2.50915842,3985.4,3985.0,1.3338]
[1754661043058,2.50915842,3985.4,3985.0,0.001]
[1754661043659,7.34415842,3985.4,3985.0,0.001]
[1754661044190,8.33799619,3985.4,3985.0,0.001]
[1754661044494,8.5688125,3985.4,3985.0,0.001]
[1754661044696,8.5598125,3985.4,3985.0,0.001]
[1754661044895,3.7338125,3985.4,3985.0,0.001]
[1754661045195,2.50897659,3985.7,3985.3,1.79710001]
[1754661045396,0.03135897,3986.1,3985.4,1.7971]
[1754661045596,2.50901461,3985.7,3985.4,1.3328]
[1754661045781,4.825,3985.9,3985.5,1.3328]
[1754661046091,0.00851857,3985.8,3985.6,1.7971]
[1754661046278,4.825,3986.1,3985.7,1.7971]
[1754661046586,2.50873246,3986.1,3985.8,1.3328]
[1754661046752,2.51730444,3986.0,3985.9,1.3328]
[1754661046957,2.51730444,3986.0,3985.3,1e-08]
[1754661046958,0.51130822,3986.0,3985.3,1e-08]
[1754661047154,0.23134492,3985.9,3985.3,1e-08]
[1754661047359,2.50915842,3985.4,3985.3,1e-08]
[1754661047659,2.7408731,3985.4,3985.3,1e-08]
[1754661048573,7.5568731,3985.4,3985.3,1e-08]
[1754661049091,8.56346395,3985.4,3985.3,1e-08]
[1754661049294,9.0996194,3985.4,3985.3,1e-08]
[1754661049474,3.74746395,3985.4,3985.3,1e-08]
[1754661049673,2.7408731,3985.4,3985.3,1.33280001]
[1754661049986,0.23171468,3985.4,3985.3,1.79710001]
[1754661050211,0.24023541,3985.4,3985.3,1.79710001]
[1754661050415,0.24023541,3985.4,3985.3,1e-08]
[1754661050416,2.7408731,3985.4,3985.3,1e-08]
[1754661050621,2.7408731,3985.4,3985.3,1.33280001]
[1754661050622,0.76903894,3985.4,3985.3,1.33280001]
[1754661050926,2.7408731,3985.4,3985.3,1.33280001]
[1754661051127,2.74939383,3985.4,3985.3,0.12560001]
[1754661051291,3.28680786,3985.4,3985.3,0.12560001]
[1754661051493,2.50934731,3985.1,3984.8,1.3328]
[1754661051692,2.74106199,3985.1,3984.8,1.3328]
[1754661051927,2.74106199,3985.1,3985.0,0.1266]
[1754661052128,3.27925384,3985.1,3985.0,0.1266]
[1754661052516,0.91042926,3985.1,3984.7,1.3328]
[1754661052710,3.27936229,3985.0,3984.8,1.3328]
[1754661053028,0.76990653,3984.9,3984.8,1.3328]
[1754661053229,0.76990653,3984.9,3984.8,1.4584]
[1754661053393,3.42003827,3984.9,3984.8,0.1256]
[1754661054115,0.91056501,3984.9,3984.8,0.1256]
[1754661054315,3.86267536,3984.9,3984.8,0.1256]
[1754661054533,4.09725922,3984.9,3984.8,0.1256]
[1754661054892,4.10578017,3984.9,3984.8,0.1256]
[1754661055092,8.89278017,3984.9,3984.8,0.1256]
[1754661055630,0.92195514,3984.9,3984.8,1.4481]
[1754661056200,0.92195514,3984.9,3984.8,1.3225]
[1754661056395,0.78129666,3984.9,3984.8,1.9147]
[1754661056623,3.28224897,3984.9,3984.8,1.4481]
[1754661056797,0.77277571,3984.9,3984.8,0.1256]
[1754661057008,0.24310481,3984.9,3984.8,1.4481]
[1754661057203,0.24310481,3984.9,3984.8,1.9147]
[1754661057600,0.24310481,3984.9,3984.8,4.31807238]
[1754661057824,0.24310481,3984.9,3984.8,1.80853615]
[1754661058060,0.24310481,3984.9,3984.8,1.34193615]
[1754661059059,3.01532193,3987.0,3984.8,1.34193615]
[1754661059060,0.67635177,3986.2,3986.0,3.0]
[1754661059264,0.002,3986.2,3986.1,7.29781779]
[1754661060035,0.002,3986.2,3986.1,12.05781779]
[1754661060564,1e-08,3986.2,3986.1,12.05781779]
[1754661061153,1e-08,3986.2,3986.1,7.29781779]
[1754661061352,1e-08,3986.2,3986.1,14.06969165]
[1754661061666,1e-08,3986.2,3986.1,14.61969165]
[1754661061871,1.82264521,3988.8,3987.2,2.50802568]
[1754661061872,0.53970747,3988.8,3987.2,2.50802568]
[1754661062071,0.4623,3989.1,3987.2,10.26402568]
[1754661062370,0.004,3989.8,3987.5,1.522]
[1754661062664,2.50653593,3989.6,3987.7,3.55]
[1754661062870,0.004,3989.8,3987.7,3.55]
[1754661062871,2.50664697,3989.4,3987.9,3.0]
[1754661063068,2.50664697,3989.4,3987.8,9.05274832]
[1754661063069,2.50664697,3989.4,3988.6,3.0]
[1754661063271,2.50664697,3989.4,3988.5,2.5071484]
[1754661063272,2.50672281,3989.3,3988.8,3.0]
[1754661063471,2.50672281,3989.3,3988.5,4.756]
[1754661063472,0.4623,3989.3,3988.5,4.756]
[1754661063635,0.004,3989.8,3988.0,1.3225]
[1754661063636,0.004,3989.8,3988.6,1.80158376]
[1754661063833,0.004,3989.8,3989.7,5.50645411]
[1754661064068,0.004,3989.8,3989.7,10.26245411]
[1754661064366,0.004,3989.8,3989.7,4.7891]
[1754661064567,0.004,3989.8,3989.7,12.05155411]
[1754661064769,0.004,3989.8,3989.7,7.29555411]
[1754661064969,0.004,3989.8,3989.7,12.05055411]
[1754661066135,1e-08,3989.8,3989.7,13.5062666]
[1754661066437,1e-08,3989.8,3989.7,14.0562666]
[1754661067177,0.4623,3992.2,3989.8,3.0]
[1754661067336,1e-08,3993.1,3989.7,7.99981249]
[1754661067337,2.50470562,3992.5,3990.1,0.55]
[1754661067537,1e-08,3993.1,3991.7,10.34214011]
[1754661067738,1e-08,3993.1,3992.1,3.0]
[1754661067933,1e-08,3993.1,3991.8,21.11714011]
[1754661067934,1e-08,3993.1,3993.0,5.50438266]
[1754661068366,11.3240597,3993.8,3993.7,3.05394371]
[1754661068538,6.2529597,3993.8,3993.7,21.15008382]
[1754661068733,8.2489798,3993.9,3993.8,6.05388101]
[1754661068932,8.2489798,3993.9,3993.8,10.81088101]
[1754661069138,0.2,3994.4,3994.3,6.05356758]
[1754661069370,0.2,3994.4,3994.3,16.83256758]
[1754661069547,0.1649185,3995.0,3994.9,2.50319156]
[1754661069751,0.004,3995.9,3995.2,2.50297338]
[1754661069950,0.004,3995.9,3995.4,5.50287831]
[1754661070174,0.004,3995.9,3995.4,10.38167831]
[1754661070346,0.004,3995.9,3995.5,6.05281566]
[1754661070347,23.84441277,3995.6,3995.5,6.05281566]
[1754661070549,1e-08,3995.9,3995.8,6.05262775]
[1754661070738,1e-08,3995.9,3995.8,11.52162775]
[1754661070937,1e-08,3995.9,3995.8,16.57362775]
[1754661071849,1e-08,3995.9,3995.8,11.82162775]
[1754661072055,1e-08,3995.9,3995.8,16.57162775]
[1754661072251,1e-08,3995.9,3995.8,11.27162775]
[1754661072453,1e-08,3995.9,3995.8,16.57162775]
[1754661072653,1.3489188,3996.2,3996.1,3.05243987]
[1754661072963,1e-08,3996.2,3996.1,7.80243987]
[1754661073162,8.2489798,3997.4,3996.1,7.80243987]
[1754661073163,8.2489798,3997.4,3997.2,2.50175122]
[1754661073477,8.2489798,3997.4,3997.2,7.80175122]
[1754661073681,8.2489798,3997.4,3997.2,10.80175122]
[1754661073880,8.2489798,3997.4,3997.2,3.0]
[1754661074078,8.2489798,3997.4,3997.2,4.75]
[1754661074607,8.2489798,3997.4,3997.2,4.757]
[1754661074889,8.2489798,3997.4,3997.2,4.764]
[1754661075095,8.2489798,3997.4,3997.2,5.314]
[1754661075393,8.2489798,3997.4,3997.2,3.0]
[1754661075558,8.2489798,3997.4,3997.2,7.761]
[1754661075756,8.2489798,3997.4,3997.2,7.76]
[1754661075959,8.2489798,3997.4,3997.2,8.31]
[1754661076269,8.2489798,3997.4,3997.2,3.0]
[1754661076496,8.2489798,3997.4,3997.2,8.309]
[1754661076845,8.2489798,3997.4,3997.2,3.55]
[1754661077045,8.2489798,3997.4,3997.2,5.306]
[1754661077357,8.2489798,3997.4,3997.2,9.73]
[1754661077681,8.2489798,3997.4,3997.2,16.7735941]
[1754661077855,8.2489798,3997.4,3997.2,10.704]
[1754661078457,10.14946431,3997.3,3997.2,21.5285941]
[1754661078979,10.14946431,3997.3,3997.2,18.2765941]
[1754661079150,10.14946431,3997.3,3997.2,23.0275941]
[1754661079887,10.14946431,3997.3,3997.2,23.0245941]
[1754661080067,8.84946431,3997.3,3997.2,23.0245941]
[1754661080305,32.18698041,3997.4,3997.3,5.053]
[1754661080507,10.020082,3998.0,3997.3,5.053]
[1754661080508,10.020082,3998.0,3997.3,11.47156502]
[1754661080812,10.020082,3998.0,3997.9,18.5185941]
[1754661081016,10.020082,3998.0,3997.9,28.0615941]
[1754661081184,10.020082,3998.0,3997.9,21.8145941]
[1754661081389,10.020082,3998.0,3997.9,4.98]
[1754661081593,10.020082,3998.0,3997.9,12.57045941]
[1754661081793,0.02,3998.3,3998.0,3.55]
[1754661081993,0.001,3998.4,3998.0,3.55]
[1754661081994,1e-08,3998.4,3998.0,3.55]
[1754661082240,1e-08,3998.4,3998.3,3.05106295]
[1754661082448,1e-08,3998.4,3998.3,7.79506295]
[1754661082577,1e-08,3998.4,3998.3,5.50106295]
[1754661082780,1e-08,3998.4,3998.3,10.24306295]
[1754661083376,1e-08,3998.4,3998.3,5.50106295]
[1754661083578,1.71390001,3998.4,3997.3,1.82805941]
[1754661083820,1.7139,3998.3,3997.2,2.0]
[1754661083983,2.0084,3998.2,3997.3,2.50168863]
[1754661084307,1e-08,3998.4,3997.2,2.0]
[1754661084308,2.0084,3998.1,3997.2,2.0]
[1754661084491,0.00848831,3998.3,3997.2,2.0]
[1754661084492,2.50131318,3997.9,3997.2,2.0]
[1754661084699,2.0084,3997.8,3997.3,4.742]
[1754661084923,2.0084,3997.7,3997.4,0.01234861]
[1754661085106,2.0084,3997.6,3997.5,4.742]
[1754661085433,2.0084,3997.6,3997.2,2.0]
[1754661085434,2.50168863,3997.3,3997.2,2.0]
[1754661085727,2.50168863,3997.3,3994.7,16.45690164]
[1754661085728,2.50218941,3996.5,3995.0,0.751489]
[1754661085942,1.9099,3996.4,3993.9,2.50381832]
[1754661086223,2.86462796,3996.3,3994.0,4.75438928]
[1754661086430,1.5476,3996.2,3995.3,2.502937]
[1754661086593,1.5476,3996.2,3994.1,0.4639]
[1754661086594,1.5560883,3996.2,3994.1,0.4639]
[1754661086798,1.5560883,3996.2,3993.5,0.751762]
[1754661086799,1.5560883,3996.2,3993.6,6.008]
[1754661086800,0.3623,3996.1,3993.6,6.008]
[1754661087106,1.5476,3996.0,3993.7,5.77137068]
[1754661087315,2.50262775,3995.8,3993.7,1.0169767]
[1754661087479,2.5030614,3995.2,3993.8,4.742]
[1754661087681,1.5476,3995.1,3993.7,3.52089369]
[1754661087906,2.50319156,3994.9,3993.7,1.0169767]
[1754661088110,4.41321422,3994.8,3993.8,0.70249767]
[1754661088321,4.41321422,3994.8,3993.8,5.44449767]
[1754661088322,2.50365086,3994.2,3993.8,5.44449767]
[1754661088534,1.5560953,3994.8,3993.8,0.70249767]
[1754661088535,1.9099,3994.1,3993.8,0.70249767]
[1754661088814,0.03978597,3994.8,3992.0,6.008]
[1754661089146,1.5476,3994.0,3992.1,5.21831718]
[1754661089334,1.5476,3994.0,3992.5,0.001]
[1754661089521,0.0084953,3993.9,3993.4,2.50412878]
[1754661089725,2.50327917,3994.8,3992.5,2.51809109]
[1754661089726,1.5476,3994.4,3993.5,4.75440969]
[1754661089933,1.5476,3994.4,3992.5,2.50567327]
[1754661089934,1.5476,3994.4,3993.6,0.47544097]
[1754661090138,0.0084953,3994.3,3993.4,4.742]
[1754661090355,1.5476,3994.2,3993.5,4.742]
[1754661090646,0.0084953,3994.1,3993.6,4.742]
[1754661090949,0.0084953,3994.1,3993.7,4.75440655]
[1754661091250,0.0084953,3994.1,3994.0,0.1248]
[1754661091453,0.0084953,3994.1,3994.0,10.85723563]
[1754661091944,0.0084953,3994.1,3994.0,5.35348]
[1754661091945,1.5560953,3994.1,3994.0,5.35348]
[1754661092112,4.05978824,3994.1,3994.0,0.1248]
[1754661092823,4.42208824,3994.1,3994.0,0.1248]
[1754661093464,4.42208824,3994.1,3992.5,0.001]
[1754661093465,1.94969146,3994.1,3992.5,0.001]
[1754661093611,2.50463357,3992.6,3992.5,0.001]
[1754661093810,2.50426338,3993.2,3992.9,0.1256]
[1754661093811,2.50438266,3993.0,3992.9,0.1256]
[1754661094039,2.50438266,3993.0,3991.4,4.743]
[1754661094040,1.5476,3993.1,3992.5,0.1256]
[1754661094222,0.0084992,3993.0,3992.9,0.1256]
[1754661094441,4.05198266,3993.0,3992.9,0.1256]
[1754661094638,2.50495286,3992.1,3990.5,6.01]
[1754661094943,2.50495286,3992.1,3989.9,2.6369779]
[1754661094944,2.50568721,3991.0,3990.6,5.344]
[1754661095140,1.5476,3991.0,3990.7,4.743]
[1754661095371,0.0084992,3992.0,3990.9,0.1256]
[1754661095372,1.5476,3991.8,3990.9,0.1256]
[1754661095572,2.50514239,3991.8,3990.9,0.1256]
[1754661095871,2.50514239,3991.8,3990.5,2.50590105]
[1754661095872,1.5560992,3991.7,3990.2,0.4639]
[1754661096049,1.5560992,3991.7,3990.3,4.744]
[1754661096256,0.15560992,3991.6,3990.4,4.744]
[1754661096449,1.5476,3991.7,3990.4,4.744]
[1754661096450,2.50570635,3990.9,3990.4,4.744]
[1754661096684,2.50546465,3991.3,3990.4,4.744]
[1754661096901,1.5476,3990.8,3989.4,0.4639]
[1754661097099,1.5476,3990.8,3989.5,4.744]
[1754661097407,1.5476,3990.8,3990.7,0.1256]
[1754661097557,1.5476,3990.8,3989.2,0.4639]
[1754661097558,2.50601443,3990.4,3990.3,0.001]
[1754661097959,4.41591443,3990.4,3990.3,0.001]
[1754661098458,1.5561072,3990.4,3990.3,0.001]
[1754661098657,1.5476,3991.1,3990.3,0.001]
[1754661098965,0.0085072,3990.4,3990.3,2.98343397]
[1754661099178,2.50538337,3991.5,3990.4,2.50600867]
[1754661099385,2.50526184,3991.6,3990.5,7.2509362]
[1754661099608,2.50454058,3992.8,3990.5,7.2509362]
[1754661099609,1.5476,3992.2,3990.6,3.0]
[1754661099895,2.50525815,3991.7,3990.8,3.0]
[1754661100063,1.5476,3991.6,3990.9,0.82089]
[1754661100264,1.5476,3991.6,3990.3,1.0738434]
[1754661100265,1.55610722,3991.6,3990.3,1.0738434]
[1754661100620,1.55610722,3991.6,3990.3,0.001]
[1754661100621,2.50601443,3990.4,3990.3,0.001]
[1754661100966,1.5476,3991.0,3990.3,0.001]
[1754661101395,1.5476,3991.4,3990.3,0.001]
[1754661101764,1.5476,3991.4,3990.5,3.0]
[1754661102099,0.00850722,3991.6,3990.6,0.4639]
[1754661102298,2.50557135,3991.2,3990.7,0.52089]
[1754661102500,1.5476,3991.5,3990.7,0.52089]
[1754661103014,2.50563791,3991.0,3990.7,0.52089]
[1754661103180,2.50570295,3990.9,3990.4,4.745]
[1754661103495,2.50512597,3991.9,3990.3,0.001]
[1754661103496,1.5476,3991.5,3990.3,0.001]
[1754661103700,0.00850759,3990.8,3990.4,0.4639]
[1754661104466,2.50601443,3990.4,3990.3,0.001]
[1754661104678,4.05361443,3990.4,3990.3,0.001]
[1754661104882,4.06212202,3990.4,3990.3,0.001]
[1754661105873,0.55,3990.3,3986.9,0.4639]
[1754661106074,13.90562796,3990.4,3986.0,0.13076837]
[1754661106075,0.55,3989.5,3986.0,0.13076837]
[1754661106283,0.55,3989.2,3986.2,0.4639]
[1754661106502,7.95623303,3989.4,3986.4,2.50852899]
[1754661106503,1.9099,3989.1,3986.4,2.50852899]
[1754661106715,4.746,3989.0,3986.6,2.50840315]
[1754661107015,1.91840759,3989.1,3986.5,1.78200576]
[1754661107016,1.94123696,3988.9,3986.8,2.50827249]
[1754661107217,1.5476,3988.8,3986.7,0.89294089]
[1754661107418,0.00850759,3989.1,3986.9,2.98458108]
[1754661107714,2.50535549,3991.5,3986.9,2.98458108]
[1754661107715,1.5476,3989.2,3987.0,4.746]
[1754661107916,1.5476,3989.2,3987.2,2.50802568]
[1754661107917,0.00850759,3989.0,3987.2,2.50802568]
[1754661108212,0.00850759,3989.0,3987.5,3.0]
[1754661108516,0.00850759,3989.0,3987.6,0.01249601]
[1754661108677,2.50695081,3989.0,3988.0,3.0]
[1754661108882,1.5476,3988.9,3987.8,3.0]
[1754661109203,1.5476,3988.9,3987.1,0.4639]
[1754661109204,2.50714143,3988.7,3987.6,2.50771334]
[1754661109517,4.05455769,3988.9,3987.7,0.25077133]
[1754661109823,2.50665331,3989.4,3988.7,3.0]
[1754661109824,1.5476,3989.4,3988.7,3.0]
[1754661109980,0.00851419,3988.8,3988.6,0.4639]
[1754661110176,2.50709677,3988.7,3988.0,0.4639]
[1754661110379,0.00851419,3988.7,3988.2,3.0]
[1754661110580,0.00851419,3988.7,3988.3,0.59713054]
[1754661110989,0.00851419,3988.7,3988.6,5.50714536]
[1754661111194,1.5476,3989.7,3988.6,3.0]
[1754661111417,0.00851419,3988.7,3988.4,0.4639]
[1754661111598,0.00851419,3988.7,3988.6,5.50714536]
[1754661111781,0.00851419,3988.7,3988.6,6.35497634]
[1754661111979,0.00851419,3988.7,3988.6,8.12447634]
[1754661112283,1.5476,3990.3,3988.7,3.0]
[1754661112483,2.50647775,3989.7,3988.7,2.50703161]
[1754661112806,2.50647775,3989.7,3988.6,1.31173098]
[1754661112807,0.00851419,3990.2,3988.6,1.34783098]
[1754661113005,2.50657977,3989.5,3988.6,0.5]
[1754661113206,1.5476,3989.7,3988.1,0.4639]
[1754661113519,2.50468592,3992.6,3988.1,0.4639]
[1754661113520,2.50607973,3990.3,3989.3,2.50668574]
[1754661113719,2.50588955,3990.6,3989.0,0.4639]
[1754661113720,0.00851079,3989.6,3989.0,0.4639]
[1754661113918,0.00851079,3989.6,3989.0,3.4639]
[1754661114131,0.00851079,3989.6,3989.5,5.50657977]
[1754661114317,0.00851079,3989.6,3989.5,3.0]
[1754661114633,1.6628,3990.1,3989.0,0.4639]
[1754661115017,0.00851079,3990.0,3989.0,0.4639]
[1754661115217,0.00851079,3990.0,3988.3,0.4674]
[1754661115403,2.50639129,3989.8,3988.3,0.4674]
[1754661115599,1.6628,3989.9,3988.4,0.82134]
[1754661115801,1.6628,3989.9,3988.3,0.4674]
[1754661116009,2.50653921,3989.6,3988.6,2.50712891]
[1754661116215,0.00851079,3989.8,3988.3,0.4674]
[1754661116410,0.00851079,3989.8,3989.0,3.0]
[1754661116637,1.6628,3990.5,3988.9,3.0]
[1754661116809,0.00851079,3989.7,3989.4,5.50660513]
[1754661117011,0.00851079,3989.7,3989.0,0.3]
[1754661117336,0.00851079,3989.7,3989.0,2.50689395]
[1754661117510,0.00851079,3989.7,3989.6,0.1256]
[1754661117712,2.5149649,3989.7,3989.6,0.1256]
[1754661117925,2.50645411,3989.7,3989.6,0.1256]
[1754661118236,2.50645411,3989.7,3987.7,1.55637133]
[1754661118237,2.50651694,3989.6,3987.7,4.99577133]
[1754661118436,0.37080936,3989.7,3989.6,0.1256]
[1754661118437,2.5150084,3989.7,3989.6,0.1256]
[1754661118640,2.50671904,3989.3,3988.6,3.0]
[1754661118836,1.67130936,3989.7,3989.2,0.1256]
[1754661118837,2.50651998,3989.6,3989.2,0.1256]
[1754661119137,1.6628,3989.7,3989.2,0.1256]
[1754661119338,1.6628,3989.5,3988.3,0.4674]
[1754661119505,1.6628,3990.1,3988.9,3.0]
[1754661119702,2.50640636,3989.8,3988.8,2.50698437]
[1754661119953,2.50646531,3989.7,3988.9,3.0]
[1754661120106,0.00850936,3990.0,3989.0,3.0]
[1754661120303,0.00850936,3990.0,3988.7,0.4674]
[1754661120304,0.00850936,3990.0,3989.3,3.0]
[1754661120530,1.6628,3990.1,3989.3,0.30124756]
[1754661120737,4.16901206,3990.1,3988.9,3.0]
[1754661121051,0.00850936,3990.0,3989.5,2.50652951]
[1754661121265,0.00850936,3990.0,3989.4,0.4674]
[1754661121266,0.00850936,3990.0,3989.4,3.0]